bitfinex/quotes_ETHUSD_20260202
["timestamp","ask_amount","ask_price","bid_price","bid_amount"]
[1770060305307,0.0011,2347.1,2346.7,1.77990263]
[1770060306007,0.0011,2347.1,2346.6,1.06537117]
[1770060307042,0.0011,2347.1,2346.5,4.2624847]
[1770060307043,0.0011,2347.3,2346.8,1.06528038]
[1770060307335,11.83525216,2347.3,2346.8,1.06528038]
[1770060307635,11.83525216,2347.3,2346.7,1.06529846]
[1770060307839,11.83525216,2347.3,2346.7,1.59806932]
[1770060309247,11.83525216,2347.3,2346.7,1.59906932]
[1770060309436,0.0011,2346.9,2346.7,1.59906932]
[1770060309612,0.0011,2346.9,2346.7,0.53377086]
[1770060309819,0.0011,2346.9,2346.7,0.001]
[1770060311925,11.83525216,2346.9,2346.5,0.001]
[1770060312245,0.0011,2346.9,2346.5,0.001]
[1770060312955,11.83525216,2346.9,2346.5,0.001]
[1770060313445,0.0011,2346.9,2346.5,0.001]
[1770060313614,0.0011,2346.9,2346.5,13.09430726]
[1770060313816,0.0011,2347.1,2346.5,13.09430726]
[1770060314017,0.0011,2347.1,2346.5,0.62313687]
[1770060315531,0.0011,2347.1,2346.6,1.06537117]
[1770060316846,0.0011,2347.1,2346.5,0.62313687]
[1770060317051,12.75107215,2347.0,2346.0,0.001]
[1770060317229,11.83415216,2346.8,2346.0,0.001]
[1770060317429,12.75107215,2346.7,2346.0,0.001]
[1770060317635,11.83415216,2346.7,2346.0,0.001]
[1770060318033,12.75054274,2346.6,2346.0,0.001]
[1770060318262,11.83415216,2346.4,2345.8,0.001]
[1770060318630,0.91597619,2346.3,2345.8,0.001]
[1770060318842,11.83415216,2346.4,2345.8,0.001]
[1770060319049,0.91601217,2346.3,2345.8,0.001]
[1770060319250,11.83415216,2346.4,2345.8,0.001]
[1770060319451,11.83415216,2346.2,2345.8,0.001]
[1770060320955,5.78299622,2346.8,2345.8,0.001]
[1770060320956,13.3309559,2347.0,2345.8,13.87536668]
[1770060321154,13.10092681,2346.8,2346.0,0.001]
[1770060321471,0.8941,2346.9,2346.0,12.98236668]
[1770060321643,0.8941,2346.9,2346.1,1.06559822]
[1770060321843,0.8941,2346.9,2346.2,1.83103578]
[1770060323060,0.8941,2346.9,2346.2,14.81240246]
[1770060323061,0.0011,2346.9,2346.2,14.81240246]
[1770060323625,0.0011,2346.9,2346.3,1.06550739]
[1770060324053,0.0011,2346.9,2346.3,14.04687407]
[1770060326357,0.0011,2346.9,2346.3,1.06550739]
[1770060326528,0.0011,2346.9,2346.3,1.78136466]
[1770060326947,0.0011,2346.9,2346.3,0.71585727]
[1770060327166,0.0011,2346.9,2346.3,1.78136215]
[1770060333267,0.0011,2346.7,2346.3,1.78136215]
[1770060336561,0.0011,2346.7,2346.3,9.42248425]
[1770060336738,0.0011,2346.9,2346.5,7.6411221]
[1770060337775,0.0011,2346.9,2346.5,8.70653211]
[1770060337950,0.0011,2346.9,2346.5,7.6411221]
[1770060338753,0.0011,2346.9,2346.5,8.70652192]
[1770060339763,0.0011,2346.9,2346.5,7.6411221]
[1770060340873,0.0011,2346.9,2346.5,8.70652736]
[1770060341075,0.0011,2346.9,2346.5,10.31203117]
[1770060341377,0.0011,2346.9,2346.5,1.60550381]
[1770060341575,0.0011,2346.9,2346.4,2.43390943]
[1770060342460,0.0011,2346.9,2346.4,15.41527611]
[1770060344672,0.0011,2346.9,2346.5,0.001]
[1770060344965,0.0011,2346.7,2346.5,0.001]
[1770060346463,0.0011,2346.9,2346.5,0.001]
[1770060349368,0.0011,2346.9,2346.5,1.52419667]
[1770060350142,0.9167763,2346.8,2346.5,1.52419667]
[1770060350365,0.0011,2346.9,2346.5,1.52419667]
[1770060350573,0.91687365,2346.8,2346.5,1.52419667]
[1770060350777,0.0011,2346.9,2346.5,1.52419667]
[1770060350942,0.91696997,2346.8,2346.5,0.001]
[1770060351142,0.0011,2346.9,2346.5,0.001]
[1770060351349,0.91736659,2346.8,2346.5,0.001]
[1770060351547,0.0011,2346.9,2346.5,0.001]
[1770060351774,0.9173716,2346.8,2346.5,0.001]
[1770060351974,0.0011,2346.9,2346.5,0.001]
[1770060352174,0.91743118,2346.8,2346.5,0.001]
[1770060352381,0.0011,2346.9,2346.5,0.001]
[1770060352675,0.91754863,2346.8,2346.5,0.001]
[1770060352875,0.0011,2346.9,2346.5,0.001]
[1770060353075,0.91748109,2346.8,2346.5,0.001]
[1770060353376,0.0011,2346.9,2346.5,0.001]
[1770060353579,0.91750947,2346.8,2346.5,0.001]
[1770060353785,0.0011,2346.9,2346.5,0.001]
[1770060353954,0.91750843,2346.8,2346.5,0.001]
[1770060354159,0.0011,2346.9,2346.5,0.001]
[1770060354381,0.91755843,2346.8,2346.5,0.001]
[1770060354678,0.0011,2346.9,2346.5,0.001]
[1770060354882,0.91755694,2346.8,2346.5,0.001]
[1770060355056,0.0011,2346.9,2346.5,0.001]
[1770060355356,0.91760635,2346.8,2346.5,0.001]
[1770060355555,0.0011,2346.9,2346.5,0.001]
[1770060355784,0.91760724,2346.8,2346.5,0.001]
[1770060355984,0.0011,2346.9,2346.5,0.001]
[1770060356287,12.6438245,2346.8,2346.3,0.894]
[1770060356482,0.91749305,2346.7,2346.3,0.894]
[1770060356690,1.28843407,2346.9,2346.3,0.894]
[1770060356857,11.72633145,2346.7,2346.3,0.894]
[1770060357587,11.72743145,2346.7,2346.3,0.001]
[1770060357787,11.72743145,2346.7,2346.5,0.001]
[1770060358084,11.72633145,2346.5,2346.3,0.001]
[1770060359283,11.72743145,2346.7,2346.3,0.001]
[1770060359457,0.91728454,2346.6,2346.3,0.001]
[1770060359656,13.01476552,2346.7,2346.3,0.001]
[1770060359856,0.91733467,2346.6,2346.3,0.001]
[1770060360072,13.01476552,2346.7,2346.3,0.001]
[1770060360381,11.72633145,2346.5,2346.0,0.894]
[1770060363381,11.72633145,2346.5,2346.0,0.001]
[1770060365300,0.91654214,2346.4,2345.8,0.001]
[1770060365591,0.91654214,2346.4,2345.7,0.001]
[1770060365592,12.64287359,2346.3,2345.6,1.20545677]
[1770060365810,11.72633145,2346.1,2345.6,1.20545677]
[1770060368765,1.26428736,2346.2,2345.6,14.83348013]
[1770060368965,2.03780927,2346.5,2345.6,14.83348013]
[1770060368966,12.87114072,2346.5,2345.6,14.83348013]
[1770060369201,0.91632558,2346.4,2345.7,7.6411221]
[1770060369502,11.72633145,2346.5,2345.9,0.001]
[1770060369503,0.91632558,2346.3,2345.9,0.001]
[1770060369794,1.2653657,2346.3,2345.9,0.001]
[1770060369995,1.30147655,2346.6,2346.0,12.56220007]
[1770060370294,1.30147655,2346.6,2345.9,7.6421221]
[1770060370295,0.0011,2346.5,2345.9,7.6421221]
[1770060370867,0.0011,2346.5,2345.9,8.70777783]
[1770060373899,0.0011,2346.5,2345.9,0.001]
[1770060373900,11.72743145,2346.5,2345.9,0.001]
[1770060374079,1.17274314,2346.4,2345.9,0.001]
[1770060375675,0.0011,2346.5,2345.9,0.001]
[1770060375870,11.72743145,2346.5,2345.9,0.001]
[1770060376598,11.72633145,2346.3,2345.9,0.001]
[1770060377378,11.72633145,2346.3,2345.6,1.20645677]
[1770060377595,11.72633145,2346.1,2345.6,1.20645677]
[1770060380399,1.17263315,2346.2,2345.6,2.2722704]
[1770060380702,12.332264,2346.3,2345.6,2.2722704]
[1770060381205,0.91649555,2346.2,2345.6,2.2722704]
[1770060381404,12.332264,2346.3,2345.6,2.2722704]
[1770060381586,0.91644329,2346.2,2345.6,1.20645677]
[1770060381786,12.332264,2346.3,2345.6,1.20645677]
[1770060381984,0.894,2346.4,2345.8,0.001]
[1770060381985,14.57123861,2346.2,2345.8,0.001]
[1770060382212,13.6548904,2346.2,2345.8,0.001]
[1770060386907,13.6548904,2346.2,2345.5,1.0668672]
[1770060386908,12.332264,2345.8,2345.1,0.001]
[1770060387214,12.332264,2345.6,2345.1,0.001]
[1770060388195,1.14480927,2345.9,2345.1,20.24804628]
[1770060388393,0.91560294,2345.8,2345.2,2.13151444]
[1770060388593,12.332264,2346.0,2345.2,2.13151444]
[1770060388887,13.24786476,2345.9,2345.1,20.24804628]
[1770060389087,0.91560076,2345.8,2345.1,20.24804628]
[1770060389286,12.332264,2345.9,2345.1,20.24804628]
[1770060389487,0.91540474,2345.8,2345.1,20.24804628]
[1770060389699,12.332264,2345.9,2345.1,20.24804628]
[1770060389914,0.91540505,2345.8,2345.1,22.87196933]
[1770060390115,13.76937133,2345.9,2345.1,22.87196933]
[1770060390315,0.91543399,2345.8,2345.1,23.93801456]
[1770060390621,12.332264,2345.8,2345.1,0.001]
[1770060390783,12.332264,2345.8,2345.1,1.0670519]
[1770060391113,2.03880927,2346.1,2345.5,20.24704628]
[1770060391114,0.894,2346.1,2345.5,20.24704628]
[1770060393032,0.0011,2346.7,2346.3,7.6481175]
[1770060393198,0.0011,2346.9,2346.5,7.6481175]
[1770060393522,0.0011,2347.1,2346.6,1.66384114]
[1770060393708,0.0011,2347.1,2346.7,7.6481175]
[1770060394322,0.0011,2347.1,2346.7,8.71343071]
[1770060394497,0.0011,2347.1,2346.7,1.06531321]
[1770060395494,0.0011,2347.5,2346.7,14.55824199]
[1770060395726,0.0011,2347.5,2346.9,12.59892878]
[1770060395952,0.0011,2347.5,2346.8,2.02598816]
[1770060396247,0.01283532,2347.1,2346.7,0.894]
[1770060396402,0.01283532,2346.8,2346.0,1.06562424]
[1770060396737,0.01283532,2346.4,2346.1,0.894]
[1770060397104,12.332264,2347.0,2346.1,0.894]
[1770060397306,12.332264,2346.8,2345.7,0.001]
[1770060397537,13.65686341,2346.7,2345.7,3.75378521]
[1770060397693,13.65686341,2346.7,2345.7,3.75378664]
[1770060397900,13.65686341,2346.7,2345.9,1.06568537]
[1770060398125,1.32459941,2346.7,2346.0,1.06563744]
[1770060398327,12.332264,2347.0,2345.9,1.06565416]
[1770060398527,0.91367029,2346.9,2345.9,13.66458294]
[1770060398728,12.332264,2347.0,2345.9,13.66458294]
[1770060398902,0.91366583,2346.9,2345.9,13.66458294]
[1770060399225,12.332264,2347.0,2345.9,13.66458294]
[1770060399428,2.25338329,2346.9,2345.9,15.56140355]
[1770060399629,1.33974196,2346.9,2345.9,15.56140355]
[1770060399830,1.33974196,2346.9,2345.9,14.49574939]
[1770060401030,1.33974196,2346.9,2345.9,15.56143673]
[1770060403534,13.67200596,2346.9,2345.8,1.06569261]
[1770060403716,14.73724401,2346.9,2345.8,1.06569261]
[1770060403918,13.67200596,2346.9,2345.8,1.06569261]
[1770060404810,13.67200596,2346.9,2345.9,1.06568724]
[1770060405407,13.67200596,2346.9,2345.8,1.0657345]
[1770060405619,1.47372276,2346.8,2345.9,1.88227004]
[1770060407137,1.47372276,2346.8,2346.1,0.001]
[1770060408912,13.80598676,2346.8,2346.1,0.001]
[1770060409216,12.332264,2346.8,2346.1,0.001]
[1770060417234,13.39754818,2346.8,2346.1,0.001]
[1770060417462,12.46868925,2346.6,2346.1,0.001]
[1770060419450,13.38391889,2346.5,2346.1,0.001]
[1770060419637,1.33839189,2346.4,2346.1,0.001]
[1770060420020,13.80708114,2346.4,2346.1,0.001]
[1770060420221,1.33839189,2346.4,2346.3,0.001]
[1770060420920,0.894,2346.7,2346.3,0.001]
[1770060421235,0.91541703,2346.6,2346.3,0.001]
[1770060421446,0.91541703,2346.5,2346.3,0.001]
[1770060421626,0.894,2346.7,2346.3,0.001]
[1770060421821,0.91575538,2346.6,2346.3,0.001]
[1770060422024,1.14480927,2347.0,2346.3,12.56263037]
[1770060422350,1.14480927,2347.0,2346.4,14.58234731]
[1770060422516,1.14590927,2347.1,2346.4,14.58234731]
[1770060423053,0.0011,2347.1,2346.4,14.58234731]
[1770060423244,0.0011,2347.1,2346.4,15.64779667]
[1770060423727,0.0011,2347.3,2346.5,12.56163037]
[1770060423927,0.0011,2347.3,2346.7,12.56163037]
[1770060424517,12.46978925,2347.3,2346.6,1.65417967]
[1770060424742,12.46978925,2347.3,2346.5,1.06539864]
[1770060424943,0.0011,2347.3,2346.5,12.56163037]
[1770060425129,1.14590927,2347.3,2346.5,12.56163037]
[1770060425328,13.61459852,2347.3,2346.5,12.56163037]
[1770060426257,1.14480927,2347.2,2346.5,12.56163037]
[1770060426444,1.14480927,2347.2,2346.5,13.92444204]
[1770060426827,1.14480927,2347.2,2346.5,1.36281167]
[1770060428357,13.61349852,2347.2,2346.5,1.36281167]
[1770060428652,13.53388699,2347.0,2346.3,0.001]
[1770060429263,12.46868925,2347.0,2346.3,0.001]
[1770060430651,1.14480927,2347.1,2346.3,0.001]
[1770060430871,2.85425975,2347.1,2346.3,13.92555318]
[1770060431639,15.322949,2347.1,2346.3,13.92555318]
[1770060432045,15.322949,2347.1,2346.5,0.001]
[1770060432447,15.324049,2347.1,2346.5,0.001]
[1770060434081,0.91701613,2347.0,2346.5,0.001]
[1770060434282,0.91701613,2346.9,2346.5,0.001]
[1770060434485,0.91701613,2346.8,2346.5,0.001]
[1770060434684,15.324049,2347.1,2346.5,0.001]
[1770060435001,2.70808927,2347.0,2346.5,0.001]
[1770060435162,0.91699299,2346.9,2346.5,0.001]
[1770060435362,0.91699299,2346.8,2346.5,0.001]
[1770060439671,14.27868224,2346.7,2346.1,0.001]
[1770060440007,12.46868925,2346.5,2346.1,0.001]
[1770060440185,2.25556121,2346.4,2346.1,0.001]
[1770060440493,1.33856822,2346.4,2346.1,0.001]
[1770060441185,13.08946017,2346.4,2346.0,0.001]
[1770060441370,13.08946017,2346.4,2345.7,0.001]
[1770060441371,11.75089195,2346.2,2345.7,0.001]
[1770060441576,14.1306467,2346.1,2345.7,0.001]
[1770060441776,0.91710438,2346.0,2345.7,0.001]
[1770060441968,13.21354232,2346.1,2345.7,0.001]
[1770060442174,0.91658769,2346.0,2345.7,0.001]
[1770060442505,12.89570122,2345.8,2345.1,3.088307]
[1770060442671,11.75089195,2345.6,2345.1,3.088307]
[1770060443006,1.80958769,2345.5,2345.1,3.088307]
[1770060443168,0.893,2345.5,2345.1,3.088307]
[1770060444299,0.893,2345.5,2344.6,0.001]
[1770060444300,12.66488893,2345.4,2344.6,0.001]
[1770060444502,13.10668084,2345.3,2344.6,0.001]
[1770060444875,14.17265636,2345.3,2344.6,0.001]
[1770060445276,11.75089195,2344.9,2343.4,0.22366465]
[1770060445475,11.75089195,2344.6,2343.4,0.22366465]
[1770060445798,0.91256182,2344.5,2343.7,1.06665908]
[1770060446000,14.07207395,2344.8,2343.7,12.1157384]
[1770060446001,12.92726468,2344.8,2343.7,12.1157384]
[1770060446172,12.92726468,2344.8,2343.1,0.894]
[1770060446173,13.55505951,2344.7,2343.5,1.06675353]
[1770060446367,12.64489195,2344.7,2343.5,1.06677933]
[1770060446569,13.13301842,2344.6,2343.5,1.74498784]
[1770060446880,14.19931756,2344.6,2343.5,2.81176416]
[1770060447074,14.19931756,2344.6,2343.5,1.74498784]
[1770060447496,13.13301842,2344.6,2343.5,2.81176542]
[1770060447707,1.38212647,2344.6,2343.6,12.1157384]
[1770060448007,1.96026524,2344.7,2343.6,12.1157384]
[1770060448008,12.64489195,2344.7,2343.6,14.03521762]
[1770060448505,13.71112669,2344.7,2343.4,13.1825421]
[1770060448797,13.71112669,2344.7,2343.4,13.18256048]
[1770060448974,13.71112669,2344.7,2343.4,12.1157384]
[1770060449174,13.71112669,2344.7,2343.2,1.06691699]
[1770060449370,13.71112669,2344.7,2343.0,12.1157384]
[1770060449570,11.75089195,2344.5,2343.2,1.06691065]
[1770060451074,11.75089195,2344.3,2343.2,1.06691065]
[1770060452397,14.61478291,2344.6,2343.2,13.18264905]
[1770060452713,11.75089195,2344.4,2342.8,13.18281291]
[1770060453006,11.75089195,2344.2,2342.9,13.18277025]
[1770060453312,12.64489195,2344.1,2342.9,13.19560557]
[1770060453604,13.01538114,2344.0,2343.0,12.1157384]
[1770060455027,13.01538114,2344.0,2342.8,1.06706936]
[1770060455308,12.81749035,2343.9,2342.8,1.06706936]
[1770060455477,12.81749035,2343.9,2342.8,13.18280776]
[1770060456212,11.75089195,2343.9,2342.8,13.18280776]
[1770060456387,1.40819632,2343.8,2342.8,12.1157384]
[1770060456978,1.40819632,2343.8,2343.0,0.001]
[1770060457211,1.26448919,2344.0,2343.1,12.1157384]
[1770060458578,1.26448919,2344.0,2343.3,12.1157384]
[1770060458782,0.894,2344.1,2343.3,12.1157384]
[1770060458988,1.91022474,2344.3,2343.3,12.1157384]
[1770060459326,1.91022474,2344.3,2343.5,12.1157384]
[1770060459522,1.91022474,2344.3,2343.3,13.18260919]
[1770060460604,13.66111669,2344.3,2343.3,12.1157384]
[1770060460906,1.36611167,2344.2,2343.3,12.1157384]
[1770060461083,11.75089195,2344.2,2343.3,13.18260398]
[1770060461713,11.75089195,2344.2,2343.3,13.1826064]
[1770060461883,11.75089195,2344.2,2343.2,13.18263636]
[1770060462085,11.75089195,2344.2,2343.3,1.06686937]
[1770060463094,11.75089195,2344.2,2343.2,13.18263505]
[1770060463420,2.97667326,2344.3,2343.2,13.18263505]
[1770060463421,13.22364847,2344.1,2343.2,1.06689665]
[1770060464220,13.22364847,2344.1,2343.0,13.18372566]
[1770060464409,13.22364847,2344.1,2343.1,1.06695878]
[1770060464590,13.22364847,2344.1,2343.2,1.06691596]
[1770060465008,13.22364847,2344.1,2343.3,1.06686741]
[1770060465213,1.32236485,2344.0,2343.3,13.18260581]
[1770060465403,14.727537,2344.3,2343.3,13.18260581]
[1770060465602,11.75089195,2344.2,2343.2,1.06688575]
[1770060465824,11.75089195,2344.2,2343.3,1.06687043]
[1770060466428,11.75089195,2344.2,2343.3,1.06686446]
[1770060467003,11.75089195,2344.2,2343.2,13.18261907]
[1770060467199,1.47275352,2344.1,2343.2,13.18261907]
[1770060467908,13.22364547,2344.1,2343.2,12.1157384]
[1770060468325,13.22364547,2344.1,2343.2,13.18265371]
[1770060468828,13.22364547,2344.1,2343.1,1.06692557]
[1770060469004,12.30410372,2344.0,2343.1,1.06692557]
[1770060469205,1.37768572,2343.9,2343.1,2.81208804]
[1770060469540,1.37768572,2343.9,2343.2,1.06691162]
[1770060471121,1.37768572,2343.9,2343.2,13.96169827]
[1770060471328,0.0011,2344.0,2343.2,13.96169827]
[1770060472333,0.91362792,2343.9,2343.2,13.96169827]
[1770060472504,0.0011,2344.0,2343.2,13.96169827]
[1770060472827,0.91362753,2343.9,2343.2,13.96169827]
[1770060473008,0.0011,2344.0,2343.2,13.96169827]
[1770060473206,1.36966911,2344.0,2343.2,13.96169827]
[1770060473409,0.9147702,2343.9,2343.2,13.96169827]
[1770060473602,0.0011,2344.0,2343.2,13.96169827]
[1770060474104,12.21183761,2344.0,2343.1,15.70686715]
[1770060474324,0.91477175,2343.9,2343.2,1.06691511]
[1770060474634,0.91477175,2343.8,2343.2,13.96170176]
[1770060474832,0.0011,2344.0,2343.2,15.90636859]
[1770060475040,0.91587762,2343.9,2343.2,15.90636859]
[1770060475335,0.91630237,2343.8,2343.2,15.90636859]
[1770060475533,0.0011,2344.0,2343.2,15.90636859]
[1770060475737,0.91630418,2343.9,2343.2,15.90636859]
[1770060475930,0.91630418,2343.8,2343.3,14.63994912]
[1770060476237,0.0011,2344.0,2343.3,14.63994912]
[1770060476552,0.91622238,2343.9,2343.4,13.96161262]
[1770060476709,0.91622238,2343.8,2343.4,13.96161262]
[1770060477037,0.0011,2344.0,2343.4,13.96161262]
[1770060477244,0.91584386,2343.9,2343.4,13.96161262]
[1770060477405,0.91584386,2343.8,2343.4,13.96161262]
[1770060477606,0.0011,2344.0,2343.4,15.90627945]
[1770060477802,0.91614661,2343.9,2343.4,15.90627945]
[1770060478052,0.91614661,2343.8,2343.4,15.90627945]
[1770060478208,0.0011,2344.0,2343.4,15.90627945]
[1770060478538,0.91621473,2343.9,2343.4,15.90627945]
[1770060478709,0.91621473,2343.8,2343.4,15.90627945]
[1770060478910,0.0011,2344.0,2343.4,15.90627945]
[1770060479121,0.91645921,2343.9,2343.4,15.90627945]
[1770060479321,0.0011,2344.0,2343.4,15.90627945]
[1770060479322,0.91645921,2343.8,2343.4,15.90627945]
[1770060479641,0.0011,2344.0,2343.4,15.90627945]
[1770060479938,0.91646751,2343.9,2343.4,15.90627945]
[1770060480138,0.91646751,2343.8,2343.4,15.90627945]
[1770060480313,0.0011,2344.0,2343.4,15.90627945]
[1770060480634,0.91672546,2343.9,2343.1,12.89478665]
[1770060480839,0.91672546,2343.8,2343.2,4.26755135]
[1770060481038,0.91672546,2343.7,2343.2,4.26755135]
[1770060481348,1.39264319,2344.0,2343.2,4.26755135]
[1770060481655,13.33723178,2343.8,2343.0,0.001]
[1770060481818,12.21073761,2343.6,2343.0,0.001]
[1770060482017,0.91665068,2343.5,2343.1,0.001]
[1770060482215,0.91665068,2343.4,2343.1,0.001]
[1770060482441,2.70406201,2343.7,2343.1,1.06795696]
[1770060482752,0.9162062,2343.6,2343.1,0.001]
[1770060483040,0.9162062,2343.5,2343.1,0.001]
[1770060483217,2.70406201,2343.7,2343.1,0.001]
[1770060483417,13.39743583,2343.6,2343.1,0.001]
[1770060483759,13.12691963,2343.5,2342.8,0.001]
[1770060483929,13.33723178,2343.3,2342.8,0.001]
[1770060484249,0.91618202,2343.2,2342.8,0.001]
[1770060484456,13.33723178,2343.3,2342.3,0.0704184]
[1770060484457,13.12691963,2343.1,2342.3,0.0704184]
[1770060484635,12.21073761,2342.9,2341.9,1.06750928]
[1770060484814,13.12691963,2342.8,2341.8,13.96334152]
[1770060485014,0.91618202,2342.7,2341.8,13.96334152]
[1770060485239,0.91618202,2342.6,2341.8,13.96334152]
[1770060485437,12.21073761,2342.8,2341.8,13.96334152]
[1770060485740,0.91416808,2342.7,2341.9,14.71815268]
[1770060485939,2.43918613,2343.0,2341.9,14.71815268]
[1770060486154,0.9141621,2342.9,2341.9,14.71815268]
[1770060486440,1.31269196,2343.0,2342.1,12.89478665]
[1770060486742,0.91361644,2342.9,2342.1,13.78978665]
[1770060487046,1.12649417,2343.1,2342.2,1.06737255]
[1770060487240,0.91363703,2343.0,2342.2,1.06737255]
[1770060487433,0.91363703,2342.9,2342.2,1.06737255]
[1770060487630,2.02149417,2343.2,2342.2,1.06737255]
[1770060487836,1.26702387,2343.1,2342.2,1.06737255]
[1770060488026,0.91269486,2343.0,2342.2,13.9621592]
[1770060488428,0.35432901,2343.1,2342.3,0.01283532]
[1770060488626,12.21073761,2343.4,2342.4,12.89478665]
[1770060488915,13.12322817,2343.3,2342.2,1.06737255]
[1770060489120,14.5482004,2343.2,2342.3,1.86646327]
[1770060489320,13.63570984,2343.2,2342.3,1.86646327]
[1770060489830,1.42497223,2343.2,2342.3,12.89478665]
[1770060490049,13.33723178,2343.5,2342.3,12.89478665]
[1770060490219,0.91267603,2343.4,2342.3,12.89478665]
[1770060490546,0.91267603,2343.4,2342.1,5.16449022]
[1770060490547,14.24990781,2343.3,2342.1,1.96241688]
[1770060490731,13.33723178,2343.1,2342.1,0.895]
[1770060490929,12.21073761,2342.9,2342.1,0.895]
[1770060491137,0.91267603,2342.8,2342.1,0.895]
[1770060491446,12.21073761,2342.9,2342.1,0.895]
[1770060491746,0.91248979,2342.8,2342.1,0.895]
[1770060491939,12.21073761,2342.8,2341.8,1.06855487]
[1770060492140,13.43181137,2342.7,2341.8,0.001]
[1770060492319,12.21073761,2342.5,2341.8,0.001]
[1770060493716,1.12649417,2342.0,2340.8,1.06796842]
[1770060493916,15.1433471,2341.9,2340.7,1.0688523]
[1770060494266,12.21073761,2341.7,2340.7,0.0008008]
[1770060494422,12.21073761,2341.5,2340.0,0.0008008]
[1770060494753,12.21073761,2341.5,2340.1,1.06830273]
[1770060494754,12.21073761,2341.3,2340.1,1.06830273]
[1770060494916,12.21073761,2341.1,2340.1,1.06832742]
[1770060495116,12.21073761,2341.1,2340.0,0.0008008]
[1770060495425,12.21073761,2340.9,2340.0,0.0008008]
[1770060495627,12.21073761,2340.9,2340.8,0.001]
[1770060495834,12.21073761,2340.9,2340.0,0.0008008]
[1770060499820,13.29155108,2340.9,2340.0,0.0008008]
[1770060500319,13.29155108,2340.9,2339.2,0.0008008]
[1770060500320,0.01283532,2339.8,2339.2,0.0008008]
[1770060500523,0.895,2340.1,2339.4,1.06864941]
[1770060500782,2.66940696,2340.8,2339.5,12.91993508]
[1770060501059,2.66940696,2340.8,2340.0,0.01283532]
[1770060501223,0.78201525,2340.8,2340.0,0.01283532]
[1770060501421,0.78201525,2340.8,2340.0,1.06837606]
[1770060501625,0.78201525,2340.8,2339.7,0.01283532]
[1770060501626,0.78201525,2340.8,2339.7,4.27403058]
[1770060501925,14.82217735,2340.8,2339.5,4.27439129]
[1770060502247,14.82217735,2340.8,2339.7,1.06850534]
[1770060502437,14.82217735,2340.8,2339.2,4.2757553]
[1770060502438,12.97213815,2340.6,2339.2,4.2757553]
[1770060502641,12.97213815,2340.6,2339.7,1.0685108]
[1770060502839,1.90940831,2340.7,2339.8,1.06844328]
[1770060503022,14.88154646,2340.7,2339.6,1.06852344]
[1770060503221,15.23254743,2340.7,2339.5,4.27430665]
[1770060503452,12.97213815,2340.5,2339.2,4.2757553]
[1770060505438,12.97213815,2340.5,2339.2,16.12710064]
[1770060505633,2.6981674,2340.6,2339.3,11.85134534]
[1770060505634,1.63005642,2340.6,2339.3,11.85134534]
[1770060505846,0.35100097,2340.7,2339.8,11.86418066]
[1770060506056,0.35100097,2340.7,2339.8,11.85134534]
[1770060506257,13.32313912,2340.7,2339.3,11.85134534]
[1770060507251,13.32313912,2340.7,2339.4,0.001]
[1770060507453,13.32313912,2340.7,2339.4,1.06965008]
[1770060507640,12.97213815,2340.5,2339.4,1.06965008]
[1770060508769,12.97213815,2340.5,2339.4,0.001]
[1770060509067,12.97213815,2340.3,2339.4,0.001]
[1770060510368,12.97213815,2340.2,2339.2,0.0008008]
[1770060510564,12.97213815,2340.0,2339.2,0.0008008]
[1770060510767,1.29721381,2339.9,2339.2,0.0008008]
[1770060511264,14.04038968,2340.3,2339.2,0.0008008]
[1770060511471,12.97213815,2340.3,2339.2,0.0008008]
[1770060513681,0.896,2340.4,2339.2,11.85214614]
[1770060515286,13.86813815,2340.4,2339.2,11.85214614]
[1770060515644,13.86813815,2340.4,2339.3,1.06869576]
[1770060515974,1.38681382,2340.3,2339.4,13.57090784]
[1770060516186,0.896,2340.4,2339.4,13.57090784]
[1770060516399,0.35210097,2340.7,2339.4,13.57090784]
[1770060517685,0.35210097,2340.7,2339.5,1.0686044]
[1770060518855,13.32423912,2340.7,2339.5,1.0686044]
[1770060521279,0.0011,2340.5,2339.5,12.91994974]
[1770060521499,0.35210097,2340.7,2339.6,13.74283833]
[1770060521792,0.0011,2340.9,2340.2,1.06828476]
[1770060521991,0.0011,2340.9,2340.2,12.9196301]
[1770060522189,1.12649417,2341.6,2340.2,13.8156301]
[1770060522393,0.91176949,2341.5,2340.2,13.8156301]
[1770060522691,0.91176949,2341.4,2340.4,11.85134534]
[1770060522985,0.91176949,2341.3,2340.4,11.85134534]
[1770060523200,1.65332978,2341.5,2340.4,11.85134534]
[1770060523360,0.91328286,2341.4,2340.4,11.85134534]
[1770060523703,0.91328286,2341.3,2340.3,1.79833631]
[1770060523905,0.91324692,2341.2,2340.4,1.06819347]
[1770060524054,13.88538507,2341.1,2339.9,1.06839672]
[1770060524259,1.12649417,2341.2,2340.0,1.06837083]
[1770060524260,1.12649417,2340.8,2340.0,1.06837083]
[1770060524462,0.91324692,2340.7,2340.1,1.06832846]
[1770060524656,0.91324692,2340.6,2340.0,1.06833172]
[1770060524885,1.12649417,2340.9,2340.2,1.06824816]
[1770060525073,15.29552193,2340.8,2340.0,1.06835048]
[1770060525420,15.29552193,2340.8,2339.5,1.0685629]
[1770060525421,15.01215287,2340.7,2339.5,1.0685629]
[1770060525564,1.12649417,2340.5,2339.4,4.275598]
[1770060525765,13.8856587,2340.4,2339.4,0.001]
[1770060525966,2.41473584,2340.3,2339.4,0.001]
[1770060526186,0.91352055,2340.2,2339.4,0.001]
[1770060526489,1.50121529,2340.3,2339.4,0.001]
[1770060526802,5.16773473,2341.0,2339.4,11.85234534]
[1770060526803,1.12649417,2340.6,2339.4,11.85234534]
[1770060526993,0.91359913,2340.5,2339.6,11.85134534]
[1770060527165,1.12649417,2340.7,2339.4,0.001]
[1770060527365,0.91331111,2340.6,2339.4,11.86518066]
[1770060527566,0.91331111,2340.5,2339.4,11.86518066]
[1770060527866,1.12649417,2340.8,2339.7,1.06851305]
[1770060528071,0.91331967,2340.7,2339.7,1.06851305]
[1770060528398,1.12649417,2341.0,2339.7,12.93269371]
[1770060528607,0.91342726,2340.9,2339.7,12.93269371]
[1770060528760,0.91342726,2340.8,2339.7,12.91985839]
[1770060528966,0.91342726,2340.7,2339.8,1.71939106]
[1770060529165,1.12649417,2341.0,2339.8,1.71939106]
[1770060529394,0.91334717,2340.9,2339.8,1.71939106]
[1770060529578,0.91334717,2340.8,2339.8,1.71939106]
[1770060529774,0.91334717,2340.7,2339.8,1.71939106]